fUSD/lending_fUSD_20240619
["ID","MTS","AMOUNT","RATE_DAILY","PERIOD"]
[329852259,1718755843374,-212.527909,0.0001479,2]
[329852262,1718755843383,-151.0,0.0001479,2]
[329852265,1718755843392,-212.527909,0.0001479,2]
[329852268,1718755843402,-220.57655,0.0001479,2]
[329852270,1718755843412,-220.57655,0.0001479,2]
[329852272,1718755843421,-151.0,0.0001479,2]
[329852274,1718755843431,-1000.0,0.0001479,2]
[329852276,1718755843440,-1000.0,0.00014798,2]
[329852278,1718755843450,-317.2969178,0.00014798,2]
[329852280,1718755843459,-294.6472532,0.000148,2]
[329852282,1718755843469,-191213.11534479,0.000148,2]
[329852283,1718755843480,-151.0,0.000148,2]
[329852284,1718755843490,-778.17029976,0.000148,2]
[329852285,1718755843500,-151.0,0.000148,2]
[329852286,1718755843510,-151.0,0.000148,2]
[329852287,1718755843519,-151.0,0.000148,2]
[329852288,1718755843529,-151.0,0.000148,2]
[329852289,1718755843539,-224.166169,0.000148,2]
[329852290,1718755843552,-151.0,0.000148,2]
[329852291,1718755843561,-151.0,0.000148,2]
[329852292,1718755843570,-334.96961,0.000148,2]
[329852293,1718755843579,-334.96961,0.000148,2]
[329852294,1718755843588,-167.018151,0.000148,2]
[329852295,1718755843600,-409.691103,0.000148,2]
[329852296,1718755843610,-409.691103,0.000148,2]
[329852297,1718755843620,-151.0,0.000148,2]
[329852298,1718755843631,-190.64654,0.000148,2]
[329852299,1718755843641,-189.532621,0.000148,2]
[329852300,1718755843651,-189.532621,0.000148,2]
[329852301,1718755843660,-151.0,0.000148,2]
[329852302,1718755843670,-151.0,0.000148,2]
[329852303,1718755843679,-161.640342,0.000148,2]
[329852304,1718755843688,-161.640342,0.000148,2]
[329852305,1718755843698,-151.0,0.000148,2]
[329852306,1718755843708,-151.0,0.000148,2]
[329852307,1718755843717,-151.0,0.000148,2]
[329852308,1718755843727,-1462.0,0.000148,2]
[329852309,1718755843737,-151.0,0.000148,2]
[329852310,1718755843747,-151.0,0.000148,2]
[329852311,1718755843757,-151.0,0.000148,2]
[329852312,1718755843767,-386.589244,0.000148,2]
[329852313,1718755843777,-386.589244,0.000148,2]
[329852314,1718755843787,-151.0,0.000148,2]
[329852315,1718755843799,-893.710181,0.000148,2]
[329852316,1718755843808,-151.0,0.000148,2]
[329852317,1718755843819,-893.710181,0.000148,2]
[329852318,1718755843828,-151.0,0.000148,2]
[329852319,1718755843838,-314.514534,0.000148,2]
[329852320,1718755843847,-151.0,0.000148,2]
[329852321,1718755843857,-314.514534,0.000148,2]
[329852322,1718755843866,-151.0,0.000148,2]
[329852323,1718755843876,-314.831484,0.000148,2]
[329852324,1718755843885,-314.831484,0.000148,2]
[329852325,1718755843895,-223.558593,0.000148,2]
[329852326,1718755843904,-151.0,0.000148,2]
[329852327,1718755843915,-151.0,0.000148,2]
[329852328,1718755843924,-151.0,0.000148,2]
[329852329,1718755843934,-223.558593,0.000148,2]
[329852330,1718755843943,-5882.279192,0.000148,2]
[329852331,1718755843952,-5882.279192,0.000148,2]
[329852332,1718755843961,-151.0,0.000148,2]
[329852333,1718755843970,-274.027139,0.000148,2]
[329852334,1718755843980,-274.027139,0.000148,2]
[329852335,1718755843989,-157.650602,0.000148,2]
[329852336,1718755843998,-3061.66377,0.000148,2]
[329852337,1718755844009,-329.974849,0.000148,2]
[329852338,1718755844019,-3061.66377,0.000148,2]
[329852339,1718755844028,-329.974849,0.000148,2]
[329852340,1718755844038,-151.0,0.000148,2]
[329852341,1718755844049,-163.142121,0.000148,2]
[329852342,1718755844058,-151.0,0.000148,2]
[329852343,1718755844067,-349.843342,0.000148,2]
[329852344,1718755844078,-349.843342,0.000148,2]
[329852345,1718755844091,-151.0,0.000148,2]
[329852346,1718755844100,-151.0,0.000148,2]
[329852347,1718755844110,-212.527909,0.000148,2]
[329852348,1718755844119,-154.813649,0.000148,2]
[329852349,1718755844130,-212.527909,0.000148,2]
[329852350,1718755844139,-220.57655,0.000148,2]
[329852351,1718755844148,-220.57655,0.000148,2]
[329852352,1718755844157,-151.0,0.000148,2]
[329852353,1718755844168,-1000.0,0.00014879,2]
[329852354,1718755844178,-500.0,0.00014879,2]
[329852355,1718755844188,-500.0,0.00014879,2]
[329852356,1718755844198,-500.0,0.0001488,2]
[329852357,1718755844207,-1000.0,0.0001488,2]
[329852358,1718755844217,-500.0,0.0001488,2]
[329852359,1718755844226,-500.0,0.0001488,2]
[329852360,1718755844235,-500.0,0.0001488,2]
[329852361,1718755844245,-200.0,0.0001488,2]
[329852362,1718755844255,-151.0,0.00014898,2]
[329852363,1718755844265,-151.0,0.00014898,2]
[329852364,1718755844274,-230.214003,0.00014898,2]
[329852365,1718755844284,-151.0,0.00014898,2]
[329852366,1718755844293,-151.0,0.00014898,2]
[329852367,1718755844305,-151.0,0.00014898,2]
[329852368,1718755844313,-151.0,0.00014898,2]
[329852369,1718755844322,-151.0,0.00014898,2]
[329852370,1718755844332,-151.0,0.00014898,2]
[329852371,1718755844341,-151.0,0.00014898,2]
[329852372,1718755844351,-151.0,0.00014898,2]
[329852373,1718755844360,-151.0,0.00014898,2]
[329852374,1718755844370,-334.96961,0.00014898,2]
[329852375,1718755844380,-334.96961,0.00014898,2]
[329852376,1718755844389,-334.96961,0.00014898,2]
[329852377,1718755844398,-334.96961,0.00014898,2]
[329852378,1718755844409,-409.691103,0.00014898,2]
[329852379,1718755844418,-409.691103,0.00014898,2]
[329852380,1718755844427,-409.691103,0.00014898,2]
[329852381,1718755844438,-409.691103,0.00014898,2]
[329852382,1718755844447,-257.491315,0.00014898,2]
[329852383,1718755844457,-189.532621,0.00014898,2]
[329852384,1718755844466,-189.532621,0.00014898,2]
[329852385,1718755844476,-151.0,0.00014898,2]
[329852386,1718755844485,-61125.82460274,0.00014898,2]
[329852387,1718755844495,-61125.82460274,0.00014898,2]
[329852388,1718755844504,-151.0,0.00014898,2]
[329852389,1718755844513,-161.640342,0.00014898,2]
[329852390,1718755844522,-161.640342,0.00014898,2]
[329852391,1718755844532,-151.0,0.00014898,2]
[329852392,1718755844542,-151.0,0.00014898,2]
[329852393,1718755844553,-151.0,0.00014898,2]
[329852394,1718755844562,-151.0,0.00014898,2]
[329852395,1718755844572,-151.0,0.00014898,2]
[329852396,1718755844582,-151.0,0.00014898,2]
[329852397,1718755844591,-151.0,0.00014898,2]
[329852398,1718755844601,-200.310346,0.00014898,2]
[329852399,1718755844611,-151.0,0.00014898,2]
[329852400,1718755844620,-245.160488,0.00014898,2]
[329852401,1718755844630,-386.589244,0.00014898,2]
[329852402,1718755844639,-386.589244,0.00014898,2]
[329852403,1718755844649,-386.589244,0.00014898,2]
[329852404,1718755844659,-386.589244,0.00014898,2]
[329852405,1718755844668,-151.0,0.00014898,2]
[329852406,1718755844678,-151.0,0.00014898,2]
[329852407,1718755844687,-151.0,0.00014898,2]
[329852408,1718755844697,-893.710181,0.00014898,2]
[329852409,1718755844706,-893.710181,0.00014898,2]
[329852410,1718755844716,-151.0,0.00014898,2]
[329852411,1718755844726,-893.710181,0.00014898,2]
[329852412,1718755844735,-893.710181,0.00014898,2]
[329852413,1718755844745,-893.710181,0.00014898,2]
[329852414,1718755844755,-893.710181,0.00014898,2]
[329852415,1718755844765,-205.166031,0.00014898,2]
[329852416,1718755844776,-314.514534,0.00014898,2]
[329852417,1718755844786,-314.514534,0.00014898,2]
[329852418,1718755844796,-314.514534,0.00014898,2]
[329852419,1718755844807,-151.0,0.00014898,2]
[329852420,1718755844816,-151.0,0.00014898,2]
[329852421,1718755844826,-267.017675,0.00014898,2]
[329852422,1718755844835,-314.514534,0.00014898,2]
[329852423,1718755844844,-314.514534,0.00014898,2]
[329852424,1718755844854,-314.514534,0.00014898,2]
[329852425,1718755844863,-232.555592,0.00014898,2]
[329852426,1718755844872,-314.831484,0.00014898,2]
[329852427,1718755844882,-314.831484,0.00014898,2]
[329852428,1718755844891,-314.831484,0.00014898,2]
[329852429,1718755845065,-314.831484,0.00014898,2]
[329852430,1718755845076,-314.831484,0.00014898,2]
[329852431,1718755845086,-314.831484,0.00014898,2]
[329852432,1718755845099,-223.558593,0.00014898,2]
[329852433,1718755845109,-223.558593,0.00014898,2]
[329852434,1718755845119,-223.558593,0.00014898,2]
[329852435,1718755845128,-151.0,0.00014898,2]
[329852436,1718755845137,-151.0,0.00014898,2]
[329852437,1718755845146,-151.0,0.00014898,2]
[329852438,1718755845155,-151.0,0.00014898,2]
[329852439,1718755845167,-175.218122,0.00014898,2]
[329852440,1718755845176,-223.558593,0.00014898,2]
[329852441,1718755845186,-5882.279192,0.00014898,2]
[329852442,1718755845195,-223.558593,0.00014898,2]
[329852443,1718755845204,-5882.279192,0.00014898,2]
[329852444,1718755845214,-223.558593,0.00014898,2]
[329852445,1718755845224,-5882.279192,0.00014898,2]
[329852446,1718755845233,-5882.279192,0.00014898,2]
[329852447,1718755845243,-5882.279192,0.00014898,2]
[329852448,1718755845252,-5882.279192,0.00014898,2]
[329852449,1718755845264,-279.240066,0.00014898,2]
[329852450,1718755845274,-274.027139,0.00014898,2]
[329852451,1718755845284,-274.027139,0.00014898,2]
[329852452,1718755845294,-274.027139,0.00014898,2]
[329852453,1718755845306,-274.027139,0.00014898,2]
[329852454,1718755845315,-274.027139,0.00014898,2]
[329852455,1718755845325,-274.027139,0.00014898,2]
[329852456,1718755845334,-3061.66377,0.00014898,2]
[329852457,1718755845344,-3061.66377,0.00014898,2]
[329852458,1718755845353,-3061.66377,0.00014898,2]
[329852459,1718755845363,-329.974849,0.00014898,2]
[329852460,1718755845372,-329.974849,0.00014898,2]
[329852461,1718755845382,-329.974849,0.00014898,2]
[329852462,1718755845393,-3061.66377,0.00014898,2]
[329852463,1718755845403,-3061.66377,0.00014898,2]
[329852464,1718755845412,-3061.66377,0.00014898,2]
[329852465,1718755845422,-329.974849,0.00014898,2]
[329852466,1718755845433,-329.974849,0.00014898,2]
[329852467,1718755845443,-329.974849,0.00014898,2]
[329852468,1718755845452,-151.0,0.00014898,2]
[329852469,1718755845461,-151.0,0.00014898,2]
[329852470,1718755845470,-151.0,0.00014898,2]
[329852471,1718755845481,-151.0,0.00014898,2]
[329852472,1718755845490,-151.0,0.00014898,2]
[329852473,1718755845499,-157.246925,0.00014898,2]
[329852474,1718755845509,-349.843342,0.00014898,2]
[329852475,1718755845519,-349.843342,0.00014898,2]
[329852476,1718755845528,-349.843342,0.00014898,2]
[329852477,1718755845539,-349.843342,0.00014898,2]
[329852478,1718755845550,-349.843342,0.00014898,2]
[329852479,1718755845559,-349.843342,0.00014898,2]
[329852480,1718755845569,-151.0,0.00014898,2]
[329852481,1718755845578,-151.0,0.00014898,2]
[329852482,1718755845588,-212.527909,0.00014898,2]
[329852483,1718755845597,-212.527909,0.00014898,2]
[329852484,1718755845607,-212.527909,0.00014898,2]
[329852485,1718755845617,-212.527909,0.00014898,2]
[329852487,1718755845627,-212.527909,0.00014898,2]
[329852488,1718755845637,-212.527909,0.00014898,2]
[329852489,1718755845646,-220.57655,0.00014898,2]
[329852490,1718755845656,-220.57655,0.00014898,2]
[329852491,1718755845666,-220.57655,0.00014898,2]
[329852492,1718755845676,-220.57655,0.00014898,2]
[329852493,1718755845685,-220.57655,0.00014898,2]
[329852495,1718755845695,-220.57655,0.00014898,2]
[329852496,1718755845706,-151.0,0.00014898,2]
[329852497,1718755845716,-151.0,0.00014898,2]
[329852498,1718755845726,-151.0,0.00014898,2]
[329852499,1718755845736,-182.6081173,0.000149,2]
[329852500,1718755845745,-1669.37669978,0.000149,2]
[329852501,1718755845755,-25148.77102949,0.000149,2]
[329852502,1718755845765,-415.96355479,0.000149,2]
[329852503,1718755845774,-5383.0,0.00014904,2]
[329852504,1718755845784,-151.0,0.00014988,2]
[329852505,1718755845794,-151.0,0.00014988,2]
[329852506,1718755845805,-151.0,0.00014988,2]
[329852507,1718755845814,-151.0,0.00014988,2]
[329852508,1718755845823,-237.61476,0.00014988,2]
[329852509,1718755845833,-334.96961,0.00014988,2]
[329852510,1718755845842,-334.96961,0.00014988,2]
[329852511,1718755845851,-409.691103,0.00014988,2]
[329852512,1718755845860,-409.691103,0.00014988,2]
[329852513,1718755845870,-151.0,0.00014988,2]
[329852514,1718755845880,-259.215625,0.00014988,2]
[329852515,1718755845890,-2995.0032947,0.00014988,2]
[329852516,1718755845900,-212.527909,0.00014988,2]
[329852517,1718755845909,-212.527909,0.00014988,2]
[329852518,1718755845918,-220.57655,0.00014988,2]
[329852519,1718755845927,-220.57655,0.00014988,2]
[329852520,1718755845937,-190.311422,0.00014988,2]
[329852521,1718755845946,-2866.9062231,0.00014988,2]
[329852522,1718755845955,-2000.0,0.0001499,2]
[329852523,1718755845964,-2203.19223415,0.0001499,2]
[329852524,1718755845973,-189.532621,0.0001499,2]
[329852525,1718755845983,-189.532621,0.0001499,2]
[329852526,1718755845992,-1748.00558097,0.00014998,2]
[329852527,1718755846001,-159.90982101,0.00014999,2]
[329852528,1718755846011,-6274360.18189684,0.00015,2]
[329852534,1718755846886,-316.83582873,0.00013999,2]
[329852535,1718755846896,-63.10641717,0.00015,2]
[329852536,1718755846906,-362.95158291,0.00015,2]
[329852537,1718755847537,-422.85267956,0.00014034,2]
[329852538,1718755847590,-1267.82998508,0.00014034,2]
[329852539,1718755847622,-3678.09456,0.00014034,2]
[329852540,1718755847692,-2052.9791628,0.00014034,2]
[329852541,1718755847724,-600.0,0.00014034,2]
[329852542,1718756032980,150.0,0.000238,30]
[329852578,1718757032104,-155.0,0.00011891,2]
[329852579,1718757032114,-304.86533253,0.00011892,2]
[329852580,1718757032124,-652.32,0.00011904,2]
[329852581,1718757032133,-319.56,0.0001353,2]
[329852582,1718757032144,-161.03,0.00013742,2]
[329852583,1718757032155,-250.0,0.00013771,2]
[329852584,1718757032166,-1000.0,0.00013888,2]
[329852585,1718757032176,-248.92686412,0.00013999,2]
[329852586,1718757032186,-505.93683534,0.00013999,2]
[329852587,1718757032195,-168.39433927,0.00013999,2]
[329852588,1718757032204,-499.99,0.00013999,2]
[329852589,1718757032214,-67.9973542,0.00013999,2]
[329852590,1718757032227,-232.0026458,0.00013999,2]
[329852591,1718757032236,-150.0,0.00013999,2]
[329852592,1718757032248,-486.60217085,0.00014,2]
[329852593,1718757032258,-423.35,0.00014,2]
[329852594,1718757032268,-11.28712335,0.00014,2]
[329852595,1718757032327,-138.71287665,0.00014,2]
[329852596,1718757032337,-150.0,0.00014,2]
[329852597,1718757032347,-164.48,0.00014,2]
[329852598,1718757032356,-30.19153679,0.00014,2]
[329852601,1718757038110,-323.82846321,0.00014,2]
[329852602,1718757038120,-146.96605491,0.00014,2]
[329852886,1718757043322,-276.38394509,0.00014,2]
[329852887,1718757043337,-150.0,0.00014,2]
[329852888,1718757043352,-150.0,0.00014,2]
[329852889,1718757043366,-354.02,0.00014,2]
[329852890,1718757043380,-164.48,0.00014,2]
[329852891,1718757043394,-4366.46,0.00014,2]
[329852892,1718757043413,-421.31,0.00014,2]
[329852893,1718757043427,-300.0,0.00014,2]
[329852894,1718757043440,-164.48,0.00014,2]
[329852895,1718757043454,-354.02,0.00014,2]
[329852896,1718757043469,-150.0,0.00014,2]
[329852897,1718757043484,-354.02,0.00014,2]
[329852898,1718757043499,-164.48,0.00014,2]
[329852899,1718757043517,-150.0,0.00014,2]
[329852900,1718757043531,-150.0,0.00014,2]
[329852901,1718757043547,-164.48,0.00014,2]
[329852902,1718757043561,-354.02,0.00014,2]
[329852903,1718757043575,-157.36,0.00014,2]
[329852905,1718757043590,-354.02,0.00014,2]
[329852906,1718757043604,-321.73,0.00014,2]
[329852907,1718757043618,-186.49,0.0001401,2]
[329852908,1718757043633,-4025.6141533,0.00014044,2]
[329852909,1718757043660,-4451.83568669,0.00014044,2]
[329852910,1718757043678,-325.60491,0.00014044,2]
[329852919,1718757046234,-1050.24683318,0.00014044,2]
[329852920,1718757046387,-146.69841683,0.00014044,2]
[329852921,1718757046397,-1726.12964317,0.00014044,2]
[329852922,1718757235770,5902.78840916,9e-05,2]
[329852924,1718757272132,14322.41417665,6.94e-05,2]
[329852925,1718757296907,693.01105558,9.71e-05,2]
[329852926,1718757296934,59.55894442,9.71e-05,2]
[329852927,1718757403787,155.0,9.71e-05,2]
[329852929,1718757421357,155.0,9.71e-05,2]
[329852931,1718757551023,959.47,0.0001502,10]
[329852935,1718757891296,150.0,9.208e-05,2]
[329852936,1718757891319,150.0,9.208e-05,2]
[329852937,1718757891340,150.0,9.208e-05,2]
[329852938,1718757891362,150.0,9.208e-05,2]
[329852939,1718757891386,114.94,9.208e-05,2]
[329852952,1718758233581,-626.6149548,0.00010973,2]
[329852954,1718758233594,-205.93924996,0.00010974,2]
[329852956,1718758233604,-155.0,0.00010974,2]
[329852957,1718758233614,-526.08886791,0.00010974,2]
[329852958,1718758233623,-269.10465746,0.00010975,2]
[329852959,1718758233633,-155.0,0.00010976,2]
[329852960,1718758233642,-155.0,0.00010977,2]
[329852961,1718758233651,-179.45347963,0.00010982,2]
[329852962,1718758233661,-179.45347962,0.00011037,2]
[329852963,1718758233671,-651.0,0.00011083,2]
[329852964,1718758233680,-300.0,0.00011095,2]
[329852965,1718758233690,-150.0,0.00011096,2]
[329852966,1718758233699,-287.75,0.00011096,2]
[329852967,1718758233708,-3926.72,0.00011096,2]
[329852968,1718758233718,-5899.36,0.00011096,2]
[329852969,1718758233727,-278.26,0.00011096,2]
[329852970,1718758233737,-300.0,0.00011135,2]
[329852971,1718758233746,-150.0,0.00011135,2]
[329852972,1718758233755,-23890.0,0.00011136,2]
[329852973,1718758233764,-2375.33,0.00011137,2]
[329852974,1718758233774,-1000.0,0.00011147,2]
[329852975,1718758233783,-250.0,0.00011182,2]
[329852976,1718758233792,-250.0,0.00011182,2]
[329852977,1718758233802,-186.49,0.00011217,2]
[329852978,1718758233811,-500.0,0.00011232,2]
[329852979,1718758233820,-327.28,0.00011234,2]
[329852980,1718758233830,-999.99,0.00011466,2]
[329852981,1718758233841,-714.94,0.00011472,2]
[329852982,1718758233851,-696.66,0.0001159,2]
[329852983,1718758233860,-179.74,0.00011592,2]
[329852984,1718758233869,-696.66,0.00011593,2]
[329852985,1718758233879,-696.66,0.00011596,2]
[329852986,1718758233890,-696.66,0.00011599,2]
[329852987,1718758233904,-696.66,0.00011602,2]
[329852988,1718758233913,-696.66,0.00011605,2]
[329852989,1718758233923,-696.66,0.00011608,2]
[329852990,1718758233933,-696.66,0.00011611,2]
[329852991,1718758233942,-696.66,0.00011615,2]
[329852992,1718758233952,-696.66,0.00011618,2]
[329852993,1718758233962,-696.66,0.00011621,2]
[329852994,1718758233973,-696.66,0.00011624,2]
[329852996,1718758233983,-696.66,0.00011627,2]
[329852998,1718758233992,-696.66,0.0001163,2]
[329853000,1718758234002,-696.66,0.00011633,2]
[329853002,1718758234012,-696.66,0.00011636,2]
[329853004,1718758234021,-696.66,0.00011639,2]
[329853006,1718758234031,-696.66,0.00011642,2]
[329853008,1718758234041,-696.66,0.00011645,2]
[329853010,1718758234050,-696.66,0.00011648,2]
[329853012,1718758234059,-7348.61014131,0.00011677,2]
[329853014,1718758234070,-7553.06448813,0.00011687,2]
[329853016,1718758234079,-420.0,0.00012191,2]
[329853018,1718758234089,-203.0,0.00012248,2]
[329853020,1718758234100,-172.78,0.00012379,2]
[329853021,1718758234110,-1000.0,0.0001254,2]
[329853023,1718758234119,-423.35,0.00013278,2]
[329853024,1718758234128,-164.48,0.00013278,2]
[329853025,1718758234138,-150.0,0.00013278,2]
[329853026,1718758234147,-354.02,0.00013278,2]
[329853027,1718758234157,-150.0,0.00013278,2]
[329853028,1718758234166,-587.0,0.00013395,2]
[329853029,1718758234175,-150.0,0.00013425,2]
[329853030,1718758234185,-150.0,0.00013425,2]
[329853031,1718758234194,-179.74,0.00013524,2]
[329853032,1718758234204,-500.0,0.00013698,2]
[329853033,1718758234214,-402.06,0.00013699,2]
[329853034,1718758234223,-437.14,0.00013699,2]
[329853035,1718758234232,-714.94,0.00013736,2]
[329853036,1718758234241,-155.37,0.00013743,2]
[329853037,1718758234251,-150.0,0.00013752,2]
[329853038,1718758234261,-2375.33,0.00013877,2]
[329853039,1718758234270,-343.2594,0.0001388,2]
[329853040,1718758234279,-12641.5251,0.0001388,2]
[329853041,1718758234289,-980.647,0.0001388,2]
[329853042,1718758234298,-155.37,0.00013886,2]
[329853043,1718758234307,-434.62572933,0.0001389,2]
[329853044,1718758234317,-333.54235923,0.0001389,2]
[329853045,1718758234326,-10295.19944562,0.000139,2]
[329853046,1718758234335,-1008.4659529,0.00013929,2]
[329853047,1718758234345,-1000.0,0.00013934,2]
[329853048,1718758234355,-151.89,0.00013945,2]
[329853049,1718758234364,-150.0,0.00013945,2]
[329853050,1718758234374,-423.35,0.00013945,2]
[329853051,1718758234383,-527.26,0.00013945,2]
[329853052,1718758234392,-328.83,0.00013945,2]
[329853053,1718758234402,-150.0,0.00013945,2]
[329853054,1718758234412,-354.02,0.00013945,2]
[329853055,1718758234421,-323.45,0.00013945,2]
[329853056,1718758234430,-150.0,0.00013945,2]
[329853057,1718758234439,-408.06,0.00013945,2]
[329853058,1718758234448,-1054.11,0.00013945,2]
[329853059,1718758234458,-423.35,0.00013945,2]
[329853060,1718758234467,-150.0,0.00013945,2]
[329853061,1718758234476,-150.0,0.00013945,2]
[329853062,1718758234485,-150.0,0.00013945,2]
[329853063,1718758234494,-164.48,0.00013945,2]
[329853064,1718758234503,-150.0,0.00013945,2]
[329853065,1718758234512,-150.0,0.00013945,2]
[329853066,1718758234522,-527.26,0.00013945,2]
[329853067,1718758234531,-354.02,0.00013945,2]
[329853069,1718758234540,-150.0,0.00013945,2]
[329853070,1718758234550,-527.26,0.00013945,2]
[329853071,1718758234559,-150.0,0.00013945,2]
[329853072,1718758234569,-150.0,0.00013945,2]
[329853073,1718758234579,-527.26,0.00013945,2]
[329853074,1718758234588,-150.0,0.00013945,2]
[329853075,1718758234599,-423.35,0.00013945,2]
[329853076,1718758234608,-527.26,0.00013945,2]
[329853077,1718758234617,-150.0,0.00013945,2]
[329853078,1718758234626,-150.0,0.00013945,2]
[329853079,1718758234636,-527.26,0.00013945,2]
[329853080,1718758234646,-423.35,0.00013945,2]
[329853081,1718758234656,-423.35,0.00013945,2]
[329853082,1718758234666,-150.0,0.00013945,2]
[329853083,1718758234675,-423.35,0.00013945,2]
[329853084,1718758234684,-153.42,0.00013945,2]
[329853085,1718758234694,-150.0,0.00013945,2]
[329853086,1718758234704,-164.48,0.00013945,2]
[329853087,1718758234714,-354.02,0.00013945,2]
[329853088,1718758234724,-150.0,0.00013945,2]
[329853089,1718758234734,-150.0,0.00013945,2]
[329853090,1718758234744,-423.35,0.00013945,2]
[329853091,1718758234959,-150.0,0.00013945,2]
[329853092,1718758234982,-164.48,0.00013945,2]
[329853093,1718758234991,-150.0,0.00013945,2]
[329853094,1718758235000,-150.0,0.00013945,2]
[329853095,1718758235010,-354.02,0.00013945,2]
[329853096,1718758235020,-164.48,0.00013945,2]
[329853097,1718758235030,-423.35,0.00013945,2]
[329853098,1718758235040,-423.35,0.00013945,2]
[329853099,1718758235049,-706.85,0.00013945,2]
[329853100,1718758235059,-150.0,0.00013945,2]
[329853101,1718758235068,-164.48,0.00013945,2]
[329853102,1718758235077,-423.35,0.00013945,2]
[329853103,1718758235086,-164.48,0.00013945,2]
[329853104,1718758235098,-423.35,0.00013945,2]
[329853105,1718758235108,-161.43,0.00013945,2]
[329853106,1718758235118,-420.58,0.00013945,2]
[329853107,1718758235127,-500.0,0.00013972,2]
[329853108,1718758235136,-358.219787,0.00013973,2]
[329853109,1718758235145,-227.09971399,0.00013978,2]
[329853110,1718758235155,-1249.76802523,0.00013978,2]
[329853111,1718758235164,-164.48,0.00013978,2]
[329853112,1718758235174,-150.0,0.00013978,2]
[329853113,1718758235183,-354.02,0.00013978,2]
[329853114,1718758235193,-150.0,0.00013978,2]
[329853115,1718758235202,-423.35,0.00013978,2]
[329853116,1718758235212,-266792.40111847,0.0001398,2]
[329853117,1718758235227,-309.26013827,0.0001398,2]
[329853118,1718758235242,-1661.1859856,0.0001398,2]
[329853119,1718758235254,-2944.63955898,0.0001398,2]
[329853120,1718758235266,-2614.77220606,0.0001398,2]
[329853121,1718758235278,-5837.96354366,0.0001398,2]
[329853122,1718758235290,-2890.70282993,0.0001398,2]
[329853123,1718758235335,-7499.01025656,0.0001398,2]
[329853124,1718758235388,-9765.09974378,0.0001398,2]
[329853125,1718758235400,-543.83019264,0.0001398,2]
[329853126,1718758235412,-11253.40175798,0.0001398,2]
[329853127,1718758235424,-854.8607206,0.0001398,2]
[329853154,1718758238948,-1118.08104101,0.0001398,2]
[329853164,1718758239079,-3486.1,0.0001398,2]
[329853165,1718758239194,-37036.4171052,0.0001398,2]
[329853310,1718758240901,-4650.0,0.0001398,2]
[329853312,1718758240915,-442.85,0.0001398,2]
[329853321,1718758240989,-985.9920372,0.0001398,2]
[329853446,1718758243434,-722.67661275,0.0001398,2]
[329853450,1718758243446,-394.60285247,0.0001398,2]
[329853453,1718758243457,-536.28001313,0.0001398,2]
[329853460,1718758243509,-82259.21099304,0.0001398,2]
[329853463,1718758243522,-18389.61904503,0.0001398,2]
[329853486,1718758243745,-92193.0185837,0.0001398,2]
[329853488,1718758243754,-110008.95197378,0.0001399,2]
[329853490,1718758243764,-318367.18012442,0.00013999,2]
[329853492,1718758243776,-302.23,0.00013999,2]